{"text_format":"1","workbook":"xlsx","n_sheets":3,"sheets":["Comment remplir la Fiche","Demande Devis","Listes"],"not_rendered":{"charts":0,"images":3,"macros":1,"external_links":1,"defined_names":276,"comments":0,"pivot_tables":0},"unopened":[],"bounds":{"document_bytes":16777216,"sheet_cells":100000,"rows_first":2000,"rows_last":500,"rows_between":2000,"halvings":0,"cell_chars":16384,"cell_head_chars":4096},"cells_cut":0,"cells_raw":0,"read":"whole","date_system":"1900"}

{"sheet":"Comment remplir la Fiche","index":0,"n_rows":0,"n_cols":0,"rows_kept":0,"cut":false,"hidden":false,"merged":[]}

{"sheet":"Demande Devis","index":1,"n_rows":111,"n_cols":17,"rows_kept":111,"cut":false,"hidden":false,"merged":[[15,15,16,15],[15,16,16,16],[105,11,105,12],[3,1,4,1],[3,2,4,2],[5,0,5,16],[7,9,13,15],[15,0,16,0],[15,1,16,1],[15,2,16,2],[15,3,16,3],[15,5,15,13],[15,14,16,14],[15,4,16,4]]}
[null,null,null,null,null,null,null,null,null,null,null,null,null,null,null,null,"PLAYART ATELIER"]
[null,null,null,null,null,null,null,null,null,null,null,null,null,null,null,null,"41 rue de l'Océan, 85560 LONGEVILLE SUR MER"]
[null,null,null,null,null,null,null,null,null,null,null,null,null,null,null,null,"Tél : 06-12-57-52-67"]
[null,"Date :",{"$f":"TODAY()","v":"2017-05-16"},null,null,null,null,null,null,null,null,null,null,null,null,null,"http://www.play-art.fr"]
[]
["Demande de Devis"]
[]
["RAISON SOCIALE :","…………………………………………",null,null,null,null,null,null,null,"Commentaire : "]
["Contact :","…………………………………………",null,"Date livraison souhaitée"]
["Adresse :","…………………………………………"]
[null,"…………………………………………"]
[null,"…………………………………………"]
["*","…………………………………………"]
["(","…………………………………………"]
[]
["Nom Visuel(s) Corps","Type Textile","Référence Textile","Coloris","Processus\nImpression","QUANTITÉ",null,null,null,null,null,null,null,null,"Impression(s) Corps","Impression Col","Nom Visuel(s) Col"]
[null,null,null,null,null,"XXS\n3-4ans","XS\n5-6ans","S\n7-8ans","M\n9-11ans","L\n12-14ans","XL\nT. Unique","XXL","XXXL","TOTAL"]
[null,null,null,null,"Numérique",null,null,null,null,null,null,null,null,{"$f":"SUM(F18:M18)","v":0}]
[null,null,null,null,"Numérique",null,null,null,null,null,null,null,null,0]
[null,null,null,null,"Numérique",null,null,null,null,null,null,null,null,0]
[null,null,null,null,"Numérique",null,null,null,null,null,null,null,null,0]
[null,null,null,null,"Numérique",null,null,null,null,null,null,null,null,0]
[null,null,null,null,"Numérique",null,null,null,null,null,null,null,null,0]
[null,null,null,null,"Numérique",null,null,null,null,null,null,null,null,0]
[null,null,null,null,"Numérique",null,null,null,null,null,null,null,null,0]
[null,null,null,null,"Numérique",null,null,null,null,null,null,null,null,0]
[null,null,null,null,"Numérique",null,null,null,null,null,null,null,null,0]
[null,null,null,null,"Numérique",null,null,null,null,null,null,null,null,0]
[null,null,null,null,"Numérique",null,null,null,null,null,null,null,null,0]
[null,null,null,null,"Numérique",null,null,null,null,null,null,null,null,0]
[null,null,null,null,"Numérique",null,null,null,null,null,null,null,null,0]
[null,null,null,null,"Numérique",null,null,null,null,null,null,null,null,0]
[null,null,null,null,"Numérique",null,null,null,null,null,null,null,null,0]
[null,null,null,null,"Numérique",null,null,null,null,null,null,null,null,0]
[null,null,null,null,"Numérique",null,null,null,null,null,null,null,null,0]
[null,null,null,null,"Numérique",null,null,null,null,null,null,null,null,0]
[null,null,null,null,"Numérique",null,null,null,null,null,null,null,null,0]
[null,null,null,null,"Numérique",null,null,null,null,null,null,null,null,0]
[null,null,null,null,"Numérique",null,null,null,null,null,null,null,null,0]
[null,null,null,null,"Numérique",null,null,null,null,null,null,null,null,0]
[null,null,null,null,"Numérique",null,null,null,null,null,null,null,null,0]
[null,null,null,null,"Numérique",null,null,null,null,null,null,null,null,0]
[null,null,null,null,"Numérique",null,null,null,null,null,null,null,null,0]
[null,null,null,null,"Numérique",null,null,null,null,null,null,null,null,0]
[null,null,null,null,"Numérique",null,null,null,null,null,null,null,null,0]
[null,null,null,null,"Numérique",null,null,null,null,null,null,null,null,0]
[null,null,null,null,"Numérique",null,null,null,null,null,null,null,null,0]
[null,null,null,null,"Numérique",null,null,null,null,null,null,null,null,0]
[null,null,null,null,"Numérique",null,null,null,null,null,null,null,null,0]
[null,null,null,null,"Numérique",null,null,null,null,null,null,null,null,0]
[null,null,null,null,"Numérique",null,null,null,null,null,null,null,null,0]
[null,null,null,null,"Numérique",null,null,null,null,null,null,null,null,0]
[null,null,null,null,"Numérique",null,null,null,null,null,null,null,null,0]
[null,null,null,null,"Numérique",null,null,null,null,null,null,null,null,0]
[null,null,null,null,"Numérique",null,null,null,null,null,null,null,null,0]
[null,null,null,null,"Numérique",null,null,null,null,null,null,null,null,0]
[null,null,null,null,"Numérique",null,null,null,null,null,null,null,null,0]
[null,null,null,null,"Numérique",null,null,null,null,null,null,null,null,0]
[null,null,null,null,"Numérique",null,null,null,null,null,null,null,null,0]
[null,null,null,null,"Numérique",null,null,null,null,null,null,null,null,0]
[null,null,null,null,"Numérique",null,null,null,null,null,null,null,null,0]
[null,null,null,null,"Numérique",null,null,null,null,null,null,null,null,0]
[null,null,null,null,"Numérique",null,null,null,null,null,null,null,null,0]
[null,null,null,null,"Numérique",null,null,null,null,null,null,null,null,0]
[null,null,null,null,"Numérique",null,null,null,null,null,null,null,null,0]
[null,null,null,null,"Numérique",null,null,null,null,null,null,null,null,0]
[null,null,null,null,"Numérique",null,null,null,null,null,null,null,null,0]
[null,null,null,null,"Numérique",null,null,null,null,null,null,null,null,0]
[null,null,null,null,"Numérique",null,null,null,null,null,null,null,null,0]
[null,null,null,null,"Numérique",null,null,null,null,null,null,null,null,0]
[null,null,null,null,"Numérique",null,null,null,null,null,null,null,null,0]
[null,null,null,null,"Numérique",null,null,null,null,null,null,null,null,0]
[null,null,null,null,"Numérique",null,null,null,null,null,null,null,null,0]
[null,null,null,null,"Numérique",null,null,null,null,null,null,null,null,0]
[null,null,null,null,"Numérique",null,null,null,null,null,null,null,null,0]
[null,null,null,null,"Numérique",null,null,null,null,null,null,null,null,0]
[null,null,null,null,"Numérique",null,null,null,null,null,null,null,null,0]
[null,null,null,null,"Numérique",null,null,null,null,null,null,null,null,0]
[null,null,null,null,"Numérique",null,null,null,null,null,null,null,null,0]
[null,null,null,null,"Numérique",null,null,null,null,null,null,null,null,0]
[null,null,null,null,"Numérique",null,null,null,null,null,null,null,null,0]
[null,null,null,null,"Numérique",null,null,null,null,null,null,null,null,0]
[null,null,null,null,"Numérique",null,null,null,null,null,null,null,null,0]
[null,null,null,null,"Numérique",null,null,null,null,null,null,null,null,0]
[null,null,null,null,"Numérique",null,null,null,null,null,null,null,null,0]
[null,null,null,null,"Numérique",null,null,null,null,null,null,null,null,0]
[null,null,null,null,"Numérique",null,null,null,null,null,null,null,null,0]
[null,null,null,null,"Numérique",null,null,null,null,null,null,null,null,0]
[null,null,null,null,"Numérique",null,null,null,null,null,null,null,null,0]
[null,null,null,null,"Numérique",null,null,null,null,null,null,null,null,0]
[null,null,null,null,"Numérique",null,null,null,null,null,null,null,null,0]
[null,null,null,null,"Numérique",null,null,null,null,null,null,null,null,0]
[null,null,null,null,"Numérique",null,null,null,null,null,null,null,null,0]
[null,null,null,null,"Numérique",null,null,null,null,null,null,null,null,0]
[null,null,null,null,"Numérique",null,null,null,null,null,null,null,null,0]
[null,null,null,null,"Numérique",null,null,null,null,null,null,null,null,0]
[null,null,null,null,"Numérique",null,null,null,null,null,null,null,null,0]
[null,null,null,null,"Numérique",null,null,null,null,null,null,null,null,0]
[null,null,null,null,"Numérique",null,null,null,null,null,null,null,null,0]
[null,null,null,null,"Numérique",null,null,null,null,null,null,null,null,0]
[null,null,null,null,"Numérique",null,null,null,null,null,null,null,null,0]
[null,null,null,null,"Numérique",null,null,null,null,null,null,null,null,0]
[null,null,null,null,"Numérique",null,null,null,null,null,null,null,null,0]
[null,null,null,null,"Numérique",null,null,null,null,null,null,null,null,0]
[null,null,null,null,"Numérique",null,null,null,null,null,null,null,null,0]
[null,null,null,null,null,null,null,null,null,null,null,"TOTAL :",null,{"$f":"SUM(N18:N105)","v":0}]
[]
[null,"Commentaires :"]
[null,"Contact :","contact@play-art.fr"]
[null,"Adresse :","41 rue de l'Océan - 85560 Longeville sur Mer"]
[null,null,"Tél : 06-12-57-52-67"]

{"sheet":"Listes","index":2,"n_rows":994,"n_cols":23,"rows_kept":994,"cut":false,"hidden":true,"merged":[]}
["TYPE","REFERENCE","COULEUR",null,"Textile","TeeShirt","Sweat","Polo","Shirt","Pants","TeeShirt_Enfant","Sweat_Enfant","Jacket","Scarf","Bag","Affiche","Torchon","Mug",null,"etatof","impression","col","Typo_imp"]
["Sweat","BASE","ANTHRACITE",null,null,"BASE","EXPLORE","STANLEY_BUZZES","STANLEY_IMPRESSES","STANLEY_STEPS","MINI_BLOOM","MINI_BASE","STANLEY_BREAKS","WRAP","POCHETTE_M","VELIN_ARCHES_CANSON_A3","TORCHON_UNIQUE","MUG_CERAMIQUE",null,"En attente","Face","Intérieur","Numérique"]
["Sweat","BASE","BLACK",null,null,"BASEBALL","RECOVER","STANLEY_COMPETES","STANLEY_IMPRESSES_POCKET","STELLA_TRACES","MINI_JUMP_SHORT_SLEEVE","MINI_EXPLORE","STELLA_WINDS","FOLD_LINEN","POCHETTE_L","WHITE","NATURAL","MUG_METALLIQUE",null,"En cours","Dos","Extérieur","Sérigraphie"]
["Sweat","BASE","BURGUNDY",null,null,"BASEBALL_SHORT_SLEEVE","RISE","STANLEY_COMPETES_DENIM","STANLEY_INNOVATES_DENIM",null,"MINI_STANLEY_PAINTS","MINI_SCOUTS",null,null,"TOTE_BAG",null,null,"WHITE",null,"Complete","Cœur","Int & Ext","Broderie"]
["Sweat","BASE","DARK_HEATHER_BLUE",null,null,"LIVE","STANLEY_KNOWS","STANLEY_COMPETES_POCKET","STANLEY_INNOVATES_DENIM_POCKET",null,"MINI_STANLEY_STRIPES","MINI_SCOUTS_CONTRAST",null,null,"SHOPPING_BAG",null,null,"WHITE",null,null,"Manche","Pas de col","Demande spécifique"]
["Sweat","BASE","DARK_HEATHER_GREY",null,null,"STANLEY_ACTS","STANLEY_SEEKS","STANLEY_COMPETES_TIPPED","STANLEY_MANAGES",null,"MINI_STELLA_DRAWS","MINI_VOYAGES",null,null,"SHOPPING_BAG_DENIM",null,null,null,null,null,"Manche x 2"]
["Sweat","BASE","FRENCH_NAVY",null,null,"STANLEY_ADORES","STANLEY_SEEKS_COSY","STANLEY_GAMES","STELLA_INSPIRES_DENIM",null,"MINI_STELLA_LINES","MINI_VOYAGES_SHERPA",null,null,"NATURAL",null,null,null,null,null,"Pose Ecusson"]
["Sweat","BASE","HEATHER_CRANBERRY",null,null,"STANLEY_ADORES_SLUB","STANLEY_SEEKS_DENIM","STANLEY_PERFORMS","STELLA_SHINES",null,null,null,null,null,"HEATHER_GREY"]
["Sweat","BASE","HEATHER_EUCALYPTUS",null,null,"STANLEY_CHILLS_SLUB","STANLEY_SPEEDS","STANLEY_PERFORMS_DENIM",null,null,null,null,null,null,"NATURAL"]
["Sweat","BASE","HEATHER_GREY",null,null,"STANLEY_CONTRASTS","STANLEY_STROLLS","STANLEY_PERFORMS_VINTAGE",null,null,null,null,null,null,"HEATHER_GREY"]
["TeeShirt","BASEBALL","HEATHER_ASH/NAVY",null,null,"STANLEY_COOLS_MODAL","STANLEY_STROLLS_DENIM","STANLEY_TRAINS_MODAL_SLUB",null,null,null,null,null,null,"NATURAL"]
["TeeShirt","BASEBALL","HEATHER_GREY/DARK_HEATHER_INDIGO",null,null,"STANLEY_CREATES","STANLEY_STROLLS_INSIDE_OUT","STANLEY_WARMS",null,null,null,null,null,null,"NATURAL"]
["TeeShirt","BASEBALL","MID_HEATHER_GREY/DARK_HEATHER_GREY",null,null,"STANLEY_ENJOYS_LINEN","STANLEY_STROLLS_TIPPED","STELLA_PLAYS",null,null,null,null,null,null,"GREY_DENIM"]
["TeeShirt","BASEBALL","VINTAGE_WHITE/BURGUNDY",null,null,"STANLEY_ENJOYS_DENIM","STANLEY_STROLLS_VINTAGE",null,null,null,null,null,null,null,"BLACK_DENIM"]
["TeeShirt","BASEBALL","WHITE/ANTHRACITE",null,null,"STANLEY_ENJOYS_MODAL","STANLEY_TOURS"]
["TeeShirt","BASEBALL","WHITE/BLACK",null,null,"STANLEY_ENJOYS_VINTAGE","STANLEY_TOURS_SHERPA"]
["TeeShirt","BASEBALL","WHITE/CREAM_HEATHER_PINK",null,null,"STANLEY_EXPECTS","STANLEY_TRAILS"]
["TeeShirt","BASEBALL","WHITE/HEATHER_GREY",null,null,"STANLEY_FEELS","STELLA_AMAZES_TENCEL"]
["TeeShirt","BASEBALL_SHORT_SLEEVE","HEATHER_GREY/FRENCH_NAVY",null,null,"STANLEY_FLAMES","STELLA_ESCAPES"]
["TeeShirt","BASEBALL_SHORT_SLEEVE","VINTAGE_WHITE/BURGUNDY",null,null,"STANLEY_HEATS","STELLA_GLIDES"]
["TeeShirt","BASEBALL_SHORT_SLEEVE","WHITE/BLACK",null,null,"STANLEY_HIPS","STELLA_HIDES"]
["TeeShirt","LIVE","ANTHRACITE",null,null,"STANLEY_HOLDS","STELLA_HIDES_COSY"]
["TeeShirt","LIVE","BLACK",null,null,"STANLEY_HOPES_SLUB","STELLA_HIDES_DENIM"]
["TeeShirt","LIVE","DARK_HEATHER_GREY",null,null,"STANLEY_IMAGINES_VINTAGE","STELLA_SAYS"]
["TeeShirt","LIVE","FRENCH_NAVY",null,null,"STANLEY_LEADS","STELLA_SLIDES"]
["TeeShirt","LIVE","HEATHER_CRANBERRY",null,null,"STANLEY_LEADS_POCKET","STELLA_TRAVELS"]
["TeeShirt","LIVE","HEATHER_GREY",null,null,"STANLEY_NAVIGATES","STELLA_TRAVELS_SHERPA"]
["TeeShirt","LIVE","HEATHER_ICE_BLUE",null,null,"STANLEY_RELAXES","STELLA_TRIPS"]
["TeeShirt","LIVE","MID_HEATHER_ROYAL_BLUE",null,null,"STANLEY_ROOTS","STELLA_TRIPS_DENIM"]
["TeeShirt","LIVE","RED",null,null,"STANLEY_RUNS","STELLA_TRIPS_INSIDE_OUT"]
["TeeShirt","LIVE","WHITE",null,null,"STANLEY_RUNS_DENIM","STELLA_TRIPS_TIPPED"]
["Sweat","EXPLORE","ANTHRACITE",null,null,"STANLEY_SHUFFLES","STELLA_TRIPS_VINTAGE"]
["Sweat","EXPLORE","AZUR",null,null,"STANLEY_SHUFFLES_DENIM","STREAM"]
["Sweat","EXPLORE","BLACK",null,null,"STANLEY_SKATES","STUDY"]
["Sweat","EXPLORE","CREAM_HEATHER_PINK",null,null,"STANLEY_STRIPES","TELL"]
["Sweat","EXPLORE","HEATHER_ASH",null,null,"STANLEY_SURFS"]
["Sweat","EXPLORE","HEATHER_GREY",null,null,"STELLA_CHOOSES"]
["Sweat","EXPLORE","MID_HEATHER_RED",null,null,"STELLA_CROSSES"]
["Sweat","EXPLORE","NAVY",null,null,"STELLA_CRUISES"]
["Sweat","EXPLORE","RASPBERRY",null,null,"STELLA_CUDDLES_MODAL"]
["Sweat","RECOVER","HEATHER_GREY/MID_HEATHER_GREY",null,null,"STELLA_DELIGHTS"]
["Sweat","RECOVER","VINTAGE_WHITE/BURGUNDY",null,null,"STELLA_DESIGNS_TENCEL"]
["Sweat","RECOVER","VINTAGE_WHITE/NAVY",null,null,"STELLA_DESIRES"]
["Sweat","RISE","ANTHRACITE",null,null,"STELLA_DREAMS"]
["Sweat","RISE","BLACK",null,null,"STELLA_DREAMS_DENIM"]
["Sweat","RISE","BURGUNDY",null,null,"STELLA_FACES"]
["Sweat","RISE","DARK_HEATHER_BLUE",null,null,"STELLA_FLIES"]
["Sweat","RISE","DARK_HEATHER_GREY",null,null,"STELLA_FLOWS"]
["Sweat","RISE","FRENCH_NAVY",null,null,"STELLA_GLOWS_LINEN"]
["Sweat","RISE","HEATHER_CRANBERRY",null,null,"STELLA_GLOWS_MODAL"]
["Sweat","RISE","HEATHER_GREY",null,null,"STELLA_GLOWS_MODAL_POCKET"]
["Sweat_Enfant","MINI_BASE","BLACK",null,null,"STELLA_INVENTS_SLUB"]
["Sweat_Enfant","MINI_BASE","DARK_HEATHER_BLUE",null,null,"STELLA_INVITES_SLUB"]
["Sweat_Enfant","MINI_BASE","FRENCH_NAVY",null,null,"STELLA_JOKES"]
["Sweat_Enfant","MINI_BASE","HEATHER_CRANBERRY",null,null,"STELLA_JOKES_DENIM"]
["Sweat_Enfant","MINI_BASE","HEATHER_EUCALYPTUS",null,null,"STELLA_JOKES_TENCEL"]
["Sweat_Enfant","MINI_BASE","HEATHER_GREY",null,null,"STELLA_LIGHTS"]
["TeeShirt_Enfant","MINI_BLOOM","CAMELIA_PINK",null,null,"STELLA_LIKES"]
["TeeShirt_Enfant","MINI_BLOOM","RED",null,null,"STELLA_LOVES"]
["TeeShirt_Enfant","MINI_BLOOM","SLUB_HEATHER_GREY",null,null,"STELLA_LOVES_LINEN"]
["TeeShirt_Enfant","MINI_BLOOM","SUNNY_LIME",null,null,"STELLA_LOVES_MODAL"]
["TeeShirt_Enfant","MINI_BLOOM","VIVID_GREEN",null,null,"STELLA_LOVES_SLUB"]
["Sweat_Enfant","MINI_EXPLORE","ANTHRACITE",null,null,"STELLA_LOVES_VINTAGE"]
["Sweat_Enfant","MINI_EXPLORE","BURGUNDY",null,null,"STELLA_PARADES"]
["Sweat_Enfant","MINI_EXPLORE","LIGHT_HEATHER_YELLOW",null,null,"STELLA_RECALLS"]
["Sweat_Enfant","MINI_EXPLORE","SUNNY_LIME",null,null,"STELLA_RETURNS"]
["Sweat_Enfant","MINI_JUMP_SHORT_SLEEVE","WHITE/CHP/FLAMINGO_PINK",null,null,"STELLA_SAILS"]
["Sweat_Enfant","MINI_JUMP_SHORT_SLEEVE","WHITE/HG/MH_ROYAL_BLUE",null,null,"STELLA_SEDUCES_MODAL"]
["Sweat_Enfant","MINI_SCOUTS","AZUR",null,null,"STELLA_SELECTS"]
["Sweat_Enfant","MINI_SCOUTS","BLACK",null,null,"STELLA_SHOWS"]
["Sweat_Enfant","MINI_SCOUTS","BURGUNDY",null,null,"STELLA_SMILES"]
["Sweat_Enfant","MINI_SCOUTS","CREAM_HEATHER_GREY",null,null,"STELLA_SPARKLES_LINEN"]
["Sweat_Enfant","MINI_SCOUTS","HEATHER_CRANBERRY",null,null,"STELLA_SPARKLES_LINEN_GLITTER"]
["Sweat_Enfant","MINI_SCOUTS","HEATHER_GREY",null,null,"STELLA_SPARKLES_MODAL"]
["Sweat_Enfant","MINI_SCOUTS","HEATHER_ICE_BLUE",null,null,"STELLA_TURNS_SLUB"]
["Sweat_Enfant","MINI_SCOUTS","NAVY",null,null,"STELLA_VARIES_SLUB"]
["Sweat_Enfant","MINI_SCOUTS","ORANGE",null,null,"STELLA_WANTS"]
["Sweat_Enfant","MINI_SCOUTS","VIVID_GREEN",null,null,"STELLA_WANTS_DENIM"]
["Sweat_Enfant","MINI_SCOUTS_CONTRAST","HEATHER_GREY/MID_HEATHER_GREY",null,null,"STELLA_WHISPERS_SLUB"]
["Sweat_Enfant","MINI_SCOUTS_CONTRAST","VINTAGE_WHITE/BURGUNDY",null,null,"STELLA_WHISTLES"]
["Sweat_Enfant","MINI_SCOUTS_CONTRAST","VINTAGE_WHITE/NAVY",null,null,"STELLA_WINKS_MODAL"]
["TeeShirt_Enfant","MINI_STANLEY_PAINTS","AZUR",null,null,"STELLA_WISHES"]
["TeeShirt_Enfant","MINI_STANLEY_PAINTS","BLACK"]
["TeeShirt_Enfant","MINI_STANLEY_PAINTS","CARIBBEAN_BLUE"]
["TeeShirt_Enfant","MINI_STANLEY_PAINTS","GREEN"]
["TeeShirt_Enfant","MINI_STANLEY_PAINTS","GREY_VIOLET"]
["TeeShirt_Enfant","MINI_STANLEY_PAINTS","HEATHER_ASH"]
["TeeShirt_Enfant","MINI_STANLEY_PAINTS","HEATHER_GREY"]
["TeeShirt_Enfant","MINI_STANLEY_PAINTS","HEATHER_ICE_BLUE"]
["TeeShirt_Enfant","MINI_STANLEY_PAINTS","INDIA_INK_GREY"]
["TeeShirt_Enfant","MINI_STANLEY_PAINTS","MAIZE_YELLOW"]
["TeeShirt_Enfant","MINI_STANLEY_PAINTS","MID_HEATHER_BLUE"]
["TeeShirt_Enfant","MINI_STANLEY_PAINTS","MID_HEATHER_GREEN"]
["TeeShirt_Enfant","MINI_STANLEY_PAINTS","MID_HEATHER_RED"]
["TeeShirt_Enfant","MINI_STANLEY_PAINTS","MID_HEATHER_ROYAL_BLUE"]
["TeeShirt_Enfant","MINI_STANLEY_PAINTS","NAVY"]
["TeeShirt_Enfant","MINI_STANLEY_PAINTS","OCEAN_DEPTH"]
["TeeShirt_Enfant","MINI_STANLEY_PAINTS","ORANGE"]
["TeeShirt_Enfant","MINI_STANLEY_PAINTS","PARADISE_GREEN"]
["TeeShirt_Enfant","MINI_STANLEY_PAINTS","RED"]
["TeeShirt_Enfant","MINI_STANLEY_PAINTS","ROYAL_BLUE"]
["TeeShirt_Enfant","MINI_STANLEY_PAINTS","VIVID_GREEN"]
["TeeShirt_Enfant","MINI_STANLEY_PAINTS","WHITE"]
["TeeShirt_Enfant","MINI_STANLEY_STRIPES","WHITE/NAVY"]
["TeeShirt_Enfant","MINI_STANLEY_STRIPES","WHITE/STARGAZER"]
["TeeShirt_Enfant","MINI_STANLEY_STRIPES","WHITE/SUNNY_LIME"]
["TeeShirt_Enfant","MINI_STELLA_DRAWS","AZUR"]
["TeeShirt_Enfant","MINI_STELLA_DRAWS","BLACK"]
["TeeShirt_Enfant","MINI_STELLA_DRAWS","CAMELIA_PINK"]
["TeeShirt_Enfant","MINI_STELLA_DRAWS","CARIBBEAN_BLUE"]
["TeeShirt_Enfant","MINI_STELLA_DRAWS","CREAM_HEATHER_PINK"]
["TeeShirt_Enfant","MINI_STELLA_DRAWS","GREEN"]
["TeeShirt_Enfant","MINI_STELLA_DRAWS","HEATHER_ASH"]
["TeeShirt_Enfant","MINI_STELLA_DRAWS","HEATHER_CRANBERRY"]
["TeeShirt_Enfant","MINI_STELLA_DRAWS","HEATHER_ICE_BLUE"]
["TeeShirt_Enfant","MINI_STELLA_DRAWS","HEATHER_GREY"]
["TeeShirt_Enfant","MINI_STELLA_DRAWS","MAIZE_YELLOW"]
["TeeShirt_Enfant","MINI_STELLA_DRAWS","MID_HEATHER_BLUE"]
["TeeShirt_Enfant","MINI_STELLA_DRAWS","MID_HEATHER_RED"]
["TeeShirt_Enfant","MINI_STELLA_DRAWS","NAVY"]
["TeeShirt_Enfant","MINI_STELLA_DRAWS","ORANGE"]
["TeeShirt_Enfant","MINI_STELLA_DRAWS","PARADISE_GREEN"]
["TeeShirt_Enfant","MINI_STELLA_DRAWS","RASPBERRY"]
["TeeShirt_Enfant","MINI_STELLA_DRAWS","RED"]
["TeeShirt_Enfant","MINI_STELLA_DRAWS","WHITE"]
["TeeShirt_Enfant","MINI_STELLA_LINES","WHITE/ROYAL_BLUE"]
["TeeShirt_Enfant","MINI_STELLA_LINES","WHITE/SUNNY_LIME"]
["Sweat_Enfant","MINI_VOYAGES","AZUR"]
["Sweat_Enfant","MINI_VOYAGES","BLACK"]
["Sweat_Enfant","MINI_VOYAGES","CREAM_HEATHER_GREY"]
["Sweat_Enfant","MINI_VOYAGES","DARK_HEATHER_BURGUNDY"]
["Sweat_Enfant","MINI_VOYAGES","HEATHER_GREY"]
["Sweat_Enfant","MINI_VOYAGES","NAVY"]
["Sweat_Enfant","MINI_VOYAGES","VIVID_GREEN"]
["Sweat_Enfant","MINI_VOYAGES_SHERPA","DARK_HEATHER_BLUE"]
["Sweat_Enfant","MINI_VOYAGES_SHERPA","HEATHER_GREY"]
["Sweat_Enfant","MINI_VOYAGES_SHERPA","STRETCH_LIMO"]
["TeeShirt","STANLEY_ACTS","BLACK"]
["TeeShirt","STANLEY_ACTS","WHITE"]
["TeeShirt","STANLEY_ADORES","BLACK"]
["TeeShirt","STANLEY_ADORES","HEATHER_GREY"]
["TeeShirt","STANLEY_ADORES","WHITE"]
["TeeShirt","STANLEY_ADORES_SLUB","ANTHRACITE"]
["TeeShirt","STANLEY_ADORES_SLUB","VINTAGE_WHITE"]
["Jacket","STANLEY_BREAKS","ANTHRACITE"]
["Jacket","STANLEY_BREAKS","BLACK"]
["Jacket","STANLEY_BREAKS","BOTTLE_GREEN"]
["Jacket","STANLEY_BREAKS","BURGUNDY"]
["Jacket","STANLEY_BREAKS","CITADEL_BLUE"]
["Jacket","STANLEY_BREAKS","NAVY"]
["Jacket","STANLEY_BREAKS","RED"]
["Polo","STANLEY_BUZZES","HEATHER_STONE/BLACK"]
["Polo","STANLEY_BUZZES","MID_HEATHER_BEIGE/NAVY"]
["Polo","STANLEY_BUZZES","NAVY/MID_HEATHER_BEIGE"]
["TeeShirt","STANLEY_CHILLS_SLUB","MARBLE_SLUB_HEATHER_BLACK"]
["Polo","STANLEY_COMPETES","BLACK"]
["Polo","STANLEY_COMPETES","CITADEL_BLUE"]
["Polo","STANLEY_COMPETES","CREAM_HEATHER_BLUE"]
["Polo","STANLEY_COMPETES","FLAMINGO_PINK"]
["Polo","STANLEY_COMPETES","FRENCH_NAVY"]
["Polo","STANLEY_COMPETES","HEATHER_ASH"]
["Polo","STANLEY_COMPETES","HEATHER_GREY"]
["Polo","STANLEY_COMPETES","LIGHT_HEATHER_YELLOW"]
["Polo","STANLEY_COMPETES","MARBLE_SLUB_HEATHER_BLACK"]
["Polo","STANLEY_COMPETES","WHITE"]
["Polo","STANLEY_COMPETES_DENIM","DARK_WASHED_INDIGO"]
["Polo","STANLEY_COMPETES_POCKET","BLACK/MID_HEATHER_GREY_TWILL"]
["Polo","STANLEY_COMPETES_POCKET","HEATHER_GREY/DEEP_ROYAL_BLUE"]
["Polo","STANLEY_COMPETES_POCKET","WHITE/BLUE_FIL_A_FIL"]
["Polo","STANLEY_COMPETES_TIPPED","ANTHRACITE/WHITE/SCARAB_GREEN"]
["Polo","STANLEY_COMPETES_TIPPED","BLACK/WHITE/BURGUNDY"]
["Polo","STANLEY_COMPETES_TIPPED","BURGUNDY/WHITE/FRENCH_NAVY"]
["Polo","STANLEY_COMPETES_TIPPED","FRENCH_NAVY/WHITE/RED"]
["Polo","STANLEY_COMPETES_TIPPED","HEATHER_GREY/WHITE/FRENCH_NAVY"]
["TeeShirt","STANLEY_CONTRASTS","VINTAGE_WHITE/OPAL/MID_H.GREY"]
["TeeShirt","STANLEY_CONTRASTS","VINTAGE_WHITE/V.RED/ANTHRACITE"]
["TeeShirt","STANLEY_COOLS_MODAL","BLACK"]
["TeeShirt","STANLEY_COOLS_MODAL","MID_HEATHER_GREY"]
["TeeShirt","STANLEY_CREATES","DEEP_ROYAL_BLUE"]
["TeeShirt","STANLEY_CREATES","OCEAN_DEPTH"]
["TeeShirt","STANLEY_CREATES","SLUB_HEATHER_STEEL_GREY"]
["TeeShirt","STANLEY_CREATES","SUDAN_BROWN"]
["TeeShirt","STANLEY_ENJOYS_LINEN","BLACK"]
["TeeShirt","STANLEY_ENJOYS_LINEN","LINEN_GREY"]
["TeeShirt","STANLEY_ENJOYS_LINEN","LINEN_MID_HEATHER_GREY"]
["TeeShirt","STANLEY_ENJOYS_LINEN","WHITE"]
["TeeShirt","STANLEY_ENJOYS_DENIM","DARK_WASHED_INDIGO"]
["TeeShirt","STANLEY_ENJOYS_DENIM","MID_WASHED_INDIGO"]
["TeeShirt","STANLEY_ENJOYS_MODAL","ANTHRACITE"]
["TeeShirt","STANLEY_ENJOYS_MODAL","BLACK"]
["TeeShirt","STANLEY_ENJOYS_MODAL","CHOCOLATE"]
["TeeShirt","STANLEY_ENJOYS_MODAL","DEEP_ROYAL_BLUE"]
["TeeShirt","STANLEY_ENJOYS_MODAL","WHITE"]
["TeeShirt","STANLEY_ENJOYS_VINTAGE","G.DYED_ANTHRACITE"]
["TeeShirt","STANLEY_ENJOYS_VINTAGE","G.DYED_BLUE"]
["TeeShirt","STANLEY_ENJOYS_VINTAGE","G.DYED_GREY"]
["TeeShirt","STANLEY_ENJOYS_VINTAGE","G.DYED_WHITE"]
["TeeShirt","STANLEY_EXPECTS","BLACK"]
["TeeShirt","STANLEY_EXPECTS","CREAM_HEATHER_GREY"]
["TeeShirt","STANLEY_EXPECTS","NAVY"]
["TeeShirt","STANLEY_EXPECTS","ROYAL_BLUE"]
["TeeShirt","STANLEY_EXPECTS","STARGAZER"]
["TeeShirt","STANLEY_EXPECTS","SUNNY_LIME"]
["TeeShirt","STANLEY_EXPECTS","WHITE"]
["TeeShirt","STANLEY_FEELS","BLACK"]
["TeeShirt","STANLEY_FEELS","CITADEL_BLUE"]
["TeeShirt","STANLEY_FEELS","DARK_HEATHER_DENIM"]
["TeeShirt","STANLEY_FEELS","DARK_HEATHER_GREY"]
["TeeShirt","STANLEY_FEELS","HEATHER_ASH"]
["TeeShirt","STANLEY_FEELS","HEATHER_GREY"]
["TeeShirt","STANLEY_FEELS","KHAKI"]
["TeeShirt","STANLEY_FEELS","MARBLE_SLUB_HEATHER_BLACK"]
["TeeShirt","STANLEY_FEELS","NAVY"]
["TeeShirt","STANLEY_FEELS","OCEAN_DEPTH"]
["TeeShirt","STANLEY_FEELS","OPAL"]
["TeeShirt","STANLEY_FEELS","RED"]
["TeeShirt","STANLEY_FEELS","ROYAL_BLUE"]
["TeeShirt","STANLEY_FEELS","WHITE"]
["TeeShirt","STANLEY_FLAMES","SLUB_BLACK_HEATHER_GREY"]
["Polo","STANLEY_GAMES","BLACK"]
["Polo","STANLEY_GAMES","HEATHER_GREY"]
["Polo","STANLEY_GAMES","NAVY"]
["Polo","STANLEY_GAMES","ROYAL_BLUE"]
["Polo","STANLEY_GAMES","WHITE"]
["TeeShirt","STANLEY_HEATS","DARK_HEATHER_DENIM"]
["TeeShirt","STANLEY_HEATS","SLUB_HEATHER_CHARCOAL"]
["TeeShirt","STANLEY_HEATS","SLUB_MID_HEATHER_GREY"]
["TeeShirt","STANLEY_HIPS","BLACK"]
["TeeShirt","STANLEY_HIPS","CREAM_HEATHER_GREY"]
["TeeShirt","STANLEY_HIPS","DARK_HEATHER_BURGUNDY"]
["TeeShirt","STANLEY_HIPS","DARK_HEATHER_DENIM"]
["TeeShirt","STANLEY_HIPS","HEATHER_GREY"]
["TeeShirt","STANLEY_HIPS","MARBLE_SLUB_HEATHER_BLACK"]
["TeeShirt","STANLEY_HIPS","NAVY"]
["TeeShirt","STANLEY_HIPS","SLUB_HEATHER_GREY"]
["TeeShirt","STANLEY_HIPS","SLUB_HEATHER_STEEL_GREY"]
["TeeShirt","STANLEY_HIPS","WHITE"]
["TeeShirt","STANLEY_HOLDS","DARK_HEATHER_GREY/BLACK"]
["TeeShirt","STANLEY_HOLDS","HEATHER_GREY/FRENCH_NAVY"]
["TeeShirt","STANLEY_HOLDS","MID_HEATHER_BLUE/NAVY"]
["TeeShirt","STANLEY_HOLDS","NAVY/MID_HEATHER_GREY"]
["TeeShirt","STANLEY_HOPES_SLUB","ANTHRACITE"]
["TeeShirt","STANLEY_HOPES_SLUB","LIGHT_KHAKI"]
["TeeShirt","STANLEY_HOPES_SLUB","SUDAN_BROWN"]
["TeeShirt","STANLEY_HOPES_SLUB","VINTAGE_WHITE"]
["TeeShirt","STANLEY_IMAGINES_VINTAGE","G.DYED_ANTHRACITE"]
["TeeShirt","STANLEY_IMAGINES_VINTAGE","G.DYED_CITADEL_BLUE"]
["TeeShirt","STANLEY_IMAGINES_VINTAGE","G.DYED_SALTY_ROSE"]
["TeeShirt","STANLEY_IMAGINES_VINTAGE","G.DYED_WHITE"]
["Shirt","STANLEY_IMPRESSES","APRICOT"]
["Shirt","STANLEY_IMPRESSES","BLACK"]
["Shirt","STANLEY_IMPRESSES","DEEP_ROYAL_BLUE"]
["Shirt","STANLEY_IMPRESSES","EBONY"]
["Shirt","STANLEY_IMPRESSES","MID_HEATHER_GREY_TWILL"]
["Shirt","STANLEY_IMPRESSES","MID_NAVY"]
["Shirt","STANLEY_IMPRESSES","MINT"]
["Shirt","STANLEY_IMPRESSES","WHITE"]
["Shirt","STANLEY_IMPRESSES","WHITE/BLUE_CHECK"]
["Shirt","STANLEY_IMPRESSES","WHITE/LIGHT_BLUE_OXFORD"]
["Shirt","STANLEY_IMPRESSES_POCKET","BLUE_FIL_A_FIL/MID_NAVY"]
["Shirt","STANLEY_IMPRESSES_POCKET","WHITE_BLUE_CHECK/MID_NAVY"]
["Shirt","STANLEY_IMPRESSES_POCKET","WHITE_LIGHT_BLUE_OXFORD/BLUE_CHECK"]
["Shirt","STANLEY_INNOVATES_DENIM","BLACK_DENIM"]
["Shirt","STANLEY_INNOVATES_DENIM","DARK_INDIGO_DENIM"]
["Shirt","STANLEY_INNOVATES_DENIM","LIGHT_INDIGO_DENIM"]
["Shirt","STANLEY_INNOVATES_DENIM","MID_GREY_DENIM"]
["Shirt","STANLEY_INNOVATES_DENIM","MID_INDIGO_DENIM"]
["Shirt","STANLEY_INNOVATES_DENIM","ROYAL_BLUE_DENIM"]
["Shirt","STANLEY_INNOVATES_DENIM_POCKET","MID_INDIGO_DENIM/LIGHT_INDIGO_DENIM"]
["Sweat","STANLEY_KNOWS","ANTHRACITE"]
["Sweat","STANLEY_KNOWS","AZUR"]
["Sweat","STANLEY_KNOWS","BLACK"]
["Sweat","STANLEY_KNOWS","BURGUNDY"]
["Sweat","STANLEY_KNOWS","CARIBBEAN_BLUE"]
["Sweat","STANLEY_KNOWS","CREAM_HEATHER_GREY"]
["Sweat","STANLEY_KNOWS","DARK_HEATHER_BLUE"]
["Sweat","STANLEY_KNOWS","DARK_HEATHER_DENIM"]
["Sweat","STANLEY_KNOWS","DARK_HEATHER_GREY"]
["Sweat","STANLEY_KNOWS","GREEN"]
["Sweat","STANLEY_KNOWS","HEATHER_EUCALYPTUS"]
["Sweat","STANLEY_KNOWS","HEATHER_GRAPE_RED"]
["Sweat","STANLEY_KNOWS","HEATHER_GREY"]
["Sweat","STANLEY_KNOWS","HEATHER_STONE"]
["Sweat","STANLEY_KNOWS","LIGHT_KHAKI"]
["Sweat","STANLEY_KNOWS","MID_HEATHER_GREEN"]
["Sweat","STANLEY_KNOWS","MID_HEATHER_RED"]
["Sweat","STANLEY_KNOWS","NAVY"]
["Sweat","STANLEY_KNOWS","RED"]
["Sweat","STANLEY_KNOWS","ROYAL_BLUE"]
["Sweat","STANLEY_KNOWS","SLUB_HEATHER_GREY"]
["Sweat","STANLEY_KNOWS","SLUB_MID_HEATHER_CLAY"]
["Sweat","STANLEY_KNOWS","STARGAZER"]
["TeeShirt","STANLEY_LEADS","ANTHRACITE"]
["TeeShirt","STANLEY_LEADS","AZUR"]
["TeeShirt","STANLEY_LEADS","BLACK"]
["TeeShirt","STANLEY_LEADS","BOTTLE_GREEN"]
["TeeShirt","STANLEY_LEADS","BURGUNDY"]
["TeeShirt","STANLEY_LEADS","CARIBBEAN_BLUE"]
["TeeShirt","STANLEY_LEADS","CHOCOLATE"]
["TeeShirt","STANLEY_LEADS","CITADEL_BLUE"]
["TeeShirt","STANLEY_LEADS","CREAM_HEATHER_GREY"]
["TeeShirt","STANLEY_LEADS","DARK_HEATHER_BLUE"]
["TeeShirt","STANLEY_LEADS","DARK_HEATHER_DENIM"]
["TeeShirt","STANLEY_LEADS","DARK_HEATHER_GREY"]
["TeeShirt","STANLEY_LEADS","DARK_HEATHER_INDIGO"]
["TeeShirt","STANLEY_LEADS","DEEP_ROYAL_BLUE"]
["TeeShirt","STANLEY_LEADS","GREEN"]
["TeeShirt","STANLEY_LEADS","GREY_VIOLET"]
["TeeShirt","STANLEY_LEADS","HEATHER_ASH"]
["TeeShirt","STANLEY_LEADS","HEATHER_BLACK_DENIM"]
["TeeShirt","STANLEY_LEADS","HEATHER_GRAPE_RED"]
["TeeShirt","STANLEY_LEADS","HEATHER_GREY"]
["TeeShirt","STANLEY_LEADS","HEATHER_ICE_BLUE"]
["TeeShirt","STANLEY_LEADS","HEATHER_SCARAB_GREEN"]
["TeeShirt","STANLEY_LEADS","HOT_CORAL"]
["TeeShirt","STANLEY_LEADS","INDIA_INK_GREY"]
["TeeShirt","STANLEY_LEADS","KHAKI"]
["TeeShirt","STANLEY_LEADS","MAIZE_YELLOW"]
["TeeShirt","STANLEY_LEADS","MARBLE_SLUB_HEATHER_BLACK"]
["TeeShirt","STANLEY_LEADS","MID_HEATHER_BLUE"]
["TeeShirt","STANLEY_LEADS","MID_HEATHER_GREEN"]
["TeeShirt","STANLEY_LEADS","MID_HEATHER_GREY"]
["TeeShirt","STANLEY_LEADS","MID_HEATHER_KHAKI"]
["TeeShirt","STANLEY_LEADS","MID_HEATHER_RED"]
["TeeShirt","STANLEY_LEADS","MID_HEATHER_ROYAL_BLUE"]
["TeeShirt","STANLEY_LEADS","NATURAL"]
["TeeShirt","STANLEY_LEADS","NAVY"]
["TeeShirt","STANLEY_LEADS","OCEAN_DEPTH"]
["TeeShirt","STANLEY_LEADS","OPAL"]
["TeeShirt","STANLEY_LEADS","ORANGE"]
["TeeShirt","STANLEY_LEADS","PLUM"]
["TeeShirt","STANLEY_LEADS","RED"]
["TeeShirt","STANLEY_LEADS","ROYAL_BLUE"]
["TeeShirt","STANLEY_LEADS","SKY_BLUE"]
["TeeShirt","STANLEY_LEADS","SCARAB_GREEN"]
["TeeShirt","STANLEY_LEADS","SLUB_HEATHER_BLUE"]
["TeeShirt","STANLEY_LEADS","SLUB_HEATHER_GREY"]
["TeeShirt","STANLEY_LEADS","SLUB_HEATHER_STEEL_GREY"]
["TeeShirt","STANLEY_LEADS","SLUB_MID_HEATHER_CLAY"]
["TeeShirt","STANLEY_LEADS","SPECTRA_YELLOW"]
["TeeShirt","STANLEY_LEADS","STARGAZER"]
["TeeShirt","STANLEY_LEADS","VINTAGE_WHITE"]
["TeeShirt","STANLEY_LEADS","VIVID_GREEN"]
["TeeShirt","STANLEY_LEADS","WALNUT"]
["TeeShirt","STANLEY_LEADS","WHITE"]
["TeeShirt","STANLEY_LEADS_DENIM_PANEL","BLACK_DENIM/BLACK"]
["TeeShirt","STANLEY_LEADS_DENIM_PANEL","GREY_DENIM/WHITE"]
["TeeShirt","STANLEY_LEADS_POCKET","BLACK/MID_HEATHER_GREY_TWILL"]
["TeeShirt","STANLEY_LEADS_POCKET","HEATHER_GREY/DEEP_ROYAL_BLUE"]
["TeeShirt","STANLEY_LEADS_POCKET","NAVY/BLUE_FIL_A_FIL"]
["TeeShirt","STANLEY_LEADS_POCKET","SLUB_HEATHER_GREY/BLACK"]
["TeeShirt","STANLEY_LEADS_POCKET","WHITE/BLUE_FIL_A_FIL"]
["Shirt","STANLEY_MANAGES","BLACK"]
["Shirt","STANLEY_MANAGES","WHITE"]
["TeeShirt","STANLEY_NAVIGATES","WHITE/NAVY"]
["TeeShirt","STANLEY_NAVIGATES","WHITE/SLUB_HEATHER_GREY"]
["Polo","STANLEY_PERFORMS","ANTHRACITE"]
["Polo","STANLEY_PERFORMS","BLACK"]
["Polo","STANLEY_PERFORMS","CAMELIA_PINK"]
["Polo","STANLEY_PERFORMS","CREAM_HEATHER_GREY"]
["Polo","STANLEY_PERFORMS","DARK_HEATHER_BLUE"]
["Polo","STANLEY_PERFORMS","DARK_HEATHER_BURGUNDY"]
["Polo","STANLEY_PERFORMS","DARK_HEATHER_GREY"]
["Polo","STANLEY_PERFORMS","HEATHER_GREY"]
["Polo","STANLEY_PERFORMS","MID_HEATHER_GREY"]
["Polo","STANLEY_PERFORMS","MID_HEATHER_RED"]
["Polo","STANLEY_PERFORMS","NAVY"]
["Polo","STANLEY_PERFORMS","PLUM"]
["Polo","STANLEY_PERFORMS","RED"]
["Polo","STANLEY_PERFORMS","ROYAL_BLUE"]
["Polo","STANLEY_PERFORMS","SLUB_HEATHER_BLUE"]
["Polo","STANLEY_PERFORMS","SLUB_HEATHER_GREY"]
["Polo","STANLEY_PERFORMS","SLUB_HEATHER_STEEL_GREY"]
["Polo","STANLEY_PERFORMS","SLUB_MID_HEATHER_CLAY"]
["Polo","STANLEY_PERFORMS","WHITE"]
["Polo","STANLEY_PERFORMS_DENIM","DARK_WASHED_INDIGO"]
["Polo","STANLEY_PERFORMS_DENIM","MID_WASHED_INDIGO"]
["Polo","STANLEY_PERFORMS_VINTAGE","G.DYED_ANTHRACITE"]
["Polo","STANLEY_PERFORMS_VINTAGE","G.DYED_BLUE"]
["Polo","STANLEY_PERFORMS_VINTAGE","G.DYED_GREY"]
["Polo","STANLEY_PERFORMS_VINTAGE","G.DYED_WHITE"]
["TeeShirt","STANLEY_RELAXES","ANTHRACITE"]
["TeeShirt","STANLEY_RELAXES","BLACK"]
["TeeShirt","STANLEY_RELAXES","BURGUNDY"]
["TeeShirt","STANLEY_RELAXES","CARIBBEAN_BLUE"]
["TeeShirt","STANLEY_RELAXES","CITADEL_BLUE"]
["TeeShirt","STANLEY_RELAXES","DARK_HEATHER_DENIM"]
["TeeShirt","STANLEY_RELAXES","DARK_HEATHER_GREY"]
["TeeShirt","STANLEY_RELAXES","HEATHER_ASH"]
["TeeShirt","STANLEY_RELAXES","HEATHER_GREY"]
["TeeShirt","STANLEY_RELAXES","NAVY"]
["TeeShirt","STANLEY_RELAXES","ROYAL_BLUE"]
["TeeShirt","STANLEY_RELAXES","STARGAZER"]
["TeeShirt","STANLEY_RELAXES","STRETCH_LIMO"]
["TeeShirt","STANLEY_RELAXES","WHITE"]
["TeeShirt","STANLEY_ROOTS","NAVY/VINTAGE_WHITE"]
["TeeShirt","STANLEY_ROOTS","SALTY_ROSE/VINTAGE_WHITE"]
["TeeShirt","STANLEY_RUNS","BLACK"]
["TeeShirt","STANLEY_RUNS","CARIBBEAN_BLUE"]
["TeeShirt","STANLEY_RUNS","DARK_HEATHER_GREY"]
["TeeShirt","STANLEY_RUNS","HEATHER_ASH"]
["TeeShirt","STANLEY_RUNS","HEATHER_GREY"]
["TeeShirt","STANLEY_RUNS","NAVY"]
["TeeShirt","STANLEY_RUNS","RED"]
["TeeShirt","STANLEY_RUNS","ROYAL_BLUE"]
["TeeShirt","STANLEY_RUNS","SLUB_HEATHER_GREY"]
["TeeShirt","STANLEY_RUNS","VIVID_GREEN"]
["TeeShirt","STANLEY_RUNS","WHITE"]
["TeeShirt","STANLEY_RUNS_DENIM","DARK_WASHED_INDIGO"]
["TeeShirt","STANLEY_RUNS_DENIM","MID_WASHED_INDIGO"]
["Sweat","STANLEY_SEEKS","CREAM_HEATHER_GREY"]
["Sweat","STANLEY_SEEKS","DARK_HEATHER_BURGUNDY"]
["Sweat","STANLEY_SEEKS","DARK_HEATHER_TEAL"]
["Sweat","STANLEY_SEEKS","FRENCH_NAVY"]
["Sweat","STANLEY_SEEKS","HEATHER_GREY"]
["Sweat","STANLEY_SEEKS","MID_HEATHER_GREY"]
["Sweat","STANLEY_SEEKS","STRETCH_LIMO"]
["Sweat","STANLEY_SEEKS_COSY","BLACK"]
["Sweat","STANLEY_SEEKS_COSY","HEATHER_ASH"]
["Sweat","STANLEY_SEEKS_COSY","MID_HEATHER_GREY"]
["Sweat","STANLEY_SEEKS_COSY","NAVY"]
["Sweat","STANLEY_SEEKS_DENIM","MID_WASHED_INDIGO"]
["TeeShirt","STANLEY_SKATES","BLACK"]
["TeeShirt","STANLEY_SKATES","MID_HEATHER_GREY"]
["TeeShirt","STANLEY_SKATES","WHITE"]
["TeeShirt","STANLEY_SHUFFLES","ANTHRACITE"]
["TeeShirt","STANLEY_SHUFFLES","BLACK"]
["TeeShirt","STANLEY_SHUFFLES","BURGUNDY"]
["TeeShirt","STANLEY_SHUFFLES","CREAM_HEATHER_GREY"]
["TeeShirt","STANLEY_SHUFFLES","DARK_HEATHER_BLUE"]
["TeeShirt","STANLEY_SHUFFLES","HEATHER_GREY"]
["TeeShirt","STANLEY_SHUFFLES","NAVY"]
["TeeShirt","STANLEY_SHUFFLES","SLUB_HEATHER_GREY"]
["TeeShirt","STANLEY_SHUFFLES","SLUB_HEATHER_STEEL_GREY"]
["TeeShirt","STANLEY_SHUFFLES","WHITE"]
["TeeShirt","STANLEY_SHUFFLES_DENIM","DARK_WASHED_INDIGO"]
["Sweat","STANLEY_SPEEDS","MID_HEATHER_GREY/BURGUNDY"]
["Sweat","STANLEY_SPEEDS","MID_HEATHER_GREY/DARK_HEATHER_GREY"]
["Sweat","STANLEY_SPEEDS","MID_HEATHER_KHAKI/MID_HEATHER_GREY"]
["Sweat","STANLEY_SPEEDS","SLUB_HEATHER_STEEL_GREY/DARK_HEATHER_GREY"]
["Pants","STANLEY_STEPS","BLACK"]
["Pants","STANLEY_STEPS","DARK_HEATHER_GREY"]
["Pants","STANLEY_STEPS","HEATHER_GREY"]
["TeeShirt","STANLEY_STRIPES","WHITE/NAVY"]
["TeeShirt","STANLEY_STRIPES","WHITE/STARGAZER"]
["TeeShirt","STANLEY_STRIPES","WHITE/SUNNY_LIME"]
["Sweat","STANLEY_STROLLS","BLACK"]
["Sweat","STANLEY_STROLLS","BURGUNDY"]
["Sweat","STANLEY_STROLLS","CITADEL_BLUE"]
["Sweat","STANLEY_STROLLS","CREAM_HEATHER_GREY"]
["Sweat","STANLEY_STROLLS","DARK_HEATHER_BLUE"]
["Sweat","STANLEY_STROLLS","DARK_HEATHER_DENIM"]
["Sweat","STANLEY_STROLLS","DARK_HEATHER_GREY"]
["Sweat","STANLEY_STROLLS","DARK_HEATHER_TEAL"]
["Sweat","STANLEY_STROLLS","HEATHER_GRAPE_RED"]
["Sweat","STANLEY_STROLLS","HEATHER_GREY"]
["Sweat","STANLEY_STROLLS","HEATHER_SCARAB_GREEN"]
["Sweat","STANLEY_STROLLS","HEATHER_STONE"]
["Sweat","STANLEY_STROLLS","INDIA_INK_GREY"]
["Sweat","STANLEY_STROLLS","MID_HEATHER_GREY"]
["Sweat","STANLEY_STROLLS","MID_HEATHER_TEAL"]
["Sweat","STANLEY_STROLLS","NAVY"]
["Sweat","STANLEY_STROLLS","RED"]
["Sweat","STANLEY_STROLLS","SLUB_DARK_HEATHER_GREY"]
["Sweat","STANLEY_STROLLS","SLUB_HEATHER_GREY"]
["Sweat","STANLEY_STROLLS","SLUB_HEATHER_STEEL_GREY"]
["Sweat","STANLEY_STROLLS","SLUB_MID_HEATHER_CLAY"]
["Sweat","STANLEY_STROLLS","STARGAZER"]
["Sweat","STANLEY_STROLLS_DENIM","BLACK_DENIM_WASHED"]
["Sweat","STANLEY_STROLLS_DENIM","LIGHT_WASHED_INDIGO"]
["Sweat","STANLEY_STROLLS_DENIM","MID_WASHED_INDIGO"]
["Sweat","STANLEY_STROLLS_INSIDE_OUT","DARK_HEATHER_GREY"]
["Sweat","STANLEY_STROLLS_INSIDE_OUT","HEATHER_GREY"]
["Sweat","STANLEY_STROLLS_TIPPED","BURGUNDY/MID_HEATHER_BEIGE/ORANGE"]
["Sweat","STANLEY_STROLLS_TIPPED","DARK_HEATHER_GREY/WHITE/BURGUNDY"]
["Sweat","STANLEY_STROLLS_TIPPED","FRENCH_NAVY/WHITE/HEATHER_GREY"]
["Sweat","STANLEY_STROLLS_TIPPED","HEATHER_GREY/WHITE/DEEP_ROYAL_BLUE"]
["Sweat","STANLEY_STROLLS_TIPPED","SCARAB_GREEN/WHITE/HEATHER_GREY"]
["Sweat","STANLEY_STROLLS_VINTAGE","G.DYED_ANTHRACITE"]
["TeeShirt","STANLEY_SURFS","BLACK"]
["TeeShirt","STANLEY_SURFS","HEATHER_ASH"]
["TeeShirt","STANLEY_SURFS","HEATHER_GREY"]
["TeeShirt","STANLEY_SURFS","NAVY"]
["TeeShirt","STANLEY_SURFS","WHITE"]
["Sweat","STANLEY_TOURS","BLACK"]
["Sweat","STANLEY_TOURS","BURGUNDY"]
["Sweat","STANLEY_TOURS","CITADEL_BLUE"]
["Sweat","STANLEY_TOURS","CREAM_HEATHER_GREY"]
["Sweat","STANLEY_TOURS","DARK_HEATHER_BLUE"]
["Sweat","STANLEY_TOURS","DARK_HEATHER_GREY"]
["Sweat","STANLEY_TOURS","HEATHER_GREY"]
["Sweat","STANLEY_TOURS","INDIA_INK_GREY"]
["Sweat","STANLEY_TOURS","LIGHT_KHAKI"]
["Sweat","STANLEY_TOURS","NAVY"]
["Sweat","STANLEY_TOURS","RED"]
["Sweat","STANLEY_TOURS","ROYAL_BLUE"]
["Sweat","STANLEY_TOURS","STARGAZER"]
["Sweat","STANLEY_TOURS_SHERPA","DARK_HEATHER_BURGUNDY"]
["Sweat","STANLEY_TOURS_SHERPA","HEATHER_GREY"]
["Sweat","STANLEY_TOURS_SHERPA","HEATHER_SCARAB_GREEN"]
["Sweat","STANLEY_TOURS_SHERPA","NAVY"]
["Sweat","STANLEY_TOURS_SHERPA","SLUB_HEATHER_STEEL_GREY"]
["Sweat","STANLEY_TOURS_SHERPA","SLUB_MID_HEATHER_CLAY"]
["Sweat","STANLEY_TOURS_SHERPA","SNOW_DARK_HEATHER_BLUE"]
["Sweat","STANLEY_TOURS_SHERPA","STRETCH_LIMO"]
["Sweat","STANLEY_TRAILS","BLACK"]
["Sweat","STANLEY_TRAILS","FRENCH_NAVY"]
["Sweat","STANLEY_TRAILS","HEATHER_GREY"]
["Polo","STANLEY_TRAINS_MODAL_SLUB","HEATHER_GREY"]
["Polo","STANLEY_TRAINS_MODAL_SLUB","INDIA_INK_GREY"]
["Polo","STANLEY_TRAINS_MODAL_SLUB","ROYAL_BLUE"]
["Polo","STANLEY_TRAINS_MODAL_SLUB","SUNNY_LIME"]
["Polo","STANLEY_TRAINS_MODAL_SLUB","WHITE"]
["Polo","STANLEY_WARMS","DARK_HEATHER_DENIM"]
["Polo","STANLEY_WARMS","SLUB_HEATHER_CHARCOAL"]
["Polo","STANLEY_WARMS","SLUB_MID_HEATHER_GREY"]
["Sweat","STELLA_AMAZES_TENCEL","CREAM_HEATHER_GREY"]
["Sweat","STELLA_AMAZES_TENCEL","CREAM_HEATHER_PINK"]
["Sweat","STELLA_AMAZES_TENCEL","HEATHER_GREY"]
["Sweat","STELLA_AMAZES_TENCEL","INDIA_INK_GREY"]
["Sweat","STELLA_AMAZES_TENCEL","FRENCH_NAVY"]
["Sweat","STELLA_AMAZES_TENCEL","LIGHT_HEATHER_LILAC"]
["Sweat","STELLA_AMAZES_TENCEL","LIGHT_HEATHER_YELLOW"]
["TeeShirt","STELLA_CHOOSES","ANTHRACITE"]
["TeeShirt","STELLA_CHOOSES","BLACK"]
["TeeShirt","STELLA_CHOOSES","CREAM_HEATHER_BLUE"]
["TeeShirt","STELLA_CHOOSES","CREAM_HEATHER_GREY"]
["TeeShirt","STELLA_CHOOSES","DARK_HEATHER_DENIM"]
["TeeShirt","STELLA_CHOOSES","FLAMINGO_PINK"]
["TeeShirt","STELLA_CHOOSES","HEATHER_ASH"]
["TeeShirt","STELLA_CHOOSES","HEATHER_GRAPE_RED"]
["TeeShirt","STELLA_CHOOSES","HEATHER_GREY"]
["TeeShirt","STELLA_CHOOSES","NATURAL"]
["TeeShirt","STELLA_CHOOSES","NAVY"]
["TeeShirt","STELLA_CHOOSES","PARADISE_GREEN"]
["TeeShirt","STELLA_CHOOSES","RED"]
["TeeShirt","STELLA_CHOOSES","ROYAL_BLUE"]
["TeeShirt","STELLA_CHOOSES","SUNNY_LIME"]
["TeeShirt","STELLA_CHOOSES","WHITE"]
["TeeShirt","STELLA_CROSSES","WHITE/SUNNY_LIME"]
["TeeShirt","STELLA_CRUISES","WHITE/BLUE"]
["TeeShirt","STELLA_CRUISES","WHITE/DEEP_RED"]
["TeeShirt","STELLA_CUDDLES_MODAL","GREY_VIOLET"]
["TeeShirt","STELLA_CUDDLES_MODAL","MID_HEATHER_GREY"]
["TeeShirt","STELLA_CUDDLES_MODAL","OCEAN_DEPTH"]
["TeeShirt","STELLA_CUDDLES_MODAL","STRETCH_LIMO"]
["TeeShirt","STELLA_CUDDLES_MODAL","WHITE"]
["TeeShirt","STELLA_DELIGHTS","BLACK"]
["TeeShirt","STELLA_DELIGHTS","CITADEL_BLUE"]
["TeeShirt","STELLA_DELIGHTS","FLAMINGO_PINK"]
["TeeShirt","STELLA_DELIGHTS","FRENCH_NAVY"]
["TeeShirt","STELLA_DELIGHTS","HEATHER_ASH"]
["TeeShirt","STELLA_DELIGHTS","HEATHER_GREY"]
["TeeShirt","STELLA_DELIGHTS","PARADISE_GREEN"]
["TeeShirt","STELLA_DELIGHTS","WHITE"]
["TeeShirt","STELLA_DESIGNS_TENCEL","LIGHT_KHAKI"]
["TeeShirt","STELLA_DESIGNS_TENCEL","NUDE"]
["TeeShirt","STELLA_DESIGNS_TENCEL","SUDAN_BROWN"]
["TeeShirt","STELLA_DESIRES","ANTHRACITE"]
["TeeShirt","STELLA_DESIRES","BLACK"]
["TeeShirt","STELLA_DESIRES","CAMELIA_PINK"]
["TeeShirt","STELLA_DESIRES","GREEN"]
["TeeShirt","STELLA_DESIRES","LIGHT_KHAKI"]
["TeeShirt","STELLA_DESIRES","MAIZE_YELLOW"]
["TeeShirt","STELLA_DESIRES","NAVY"]
["TeeShirt","STELLA_DESIRES","OCEAN_DEPTH"]
["TeeShirt","STELLA_DESIRES","OPAL"]
["TeeShirt","STELLA_DESIRES","RED"]
["TeeShirt","STELLA_DESIRES","ROYAL_BLUE"]
["TeeShirt","STELLA_DESIRES","SLUB_HEATHER_STEEL_GREY"]
["TeeShirt","STELLA_DESIRES","SUNNY_LIME"]
["TeeShirt","STELLA_DESIRES","WHITE"]
["TeeShirt","STELLA_DREAMS","ANTHRACITE"]
["TeeShirt","STELLA_DREAMS","AZUR"]
["TeeShirt","STELLA_DREAMS","BLACK"]
["TeeShirt","STELLA_DREAMS","CAMELIA_PINK"]
["TeeShirt","STELLA_DREAMS","CREAM_HEATHER_GREY"]
["TeeShirt","STELLA_DREAMS","CREAM_HEATHER_PINK"]
["TeeShirt","STELLA_DREAMS","ECRU_NEPPY_MANDARINE"]
["TeeShirt","STELLA_DREAMS","HEATHER_ASH"]
["TeeShirt","STELLA_DREAMS","HEATHER_CRANBERRY"]
["TeeShirt","STELLA_DREAMS","HEATHER_GREY"]
["TeeShirt","STELLA_DREAMS","HEATHER_ICE_BLUE"]
["TeeShirt","STELLA_DREAMS","DARK_HEATHER_GREY"]
["TeeShirt","STELLA_DREAMS","LIGHT_HEATHER_LILAC"]
["TeeShirt","STELLA_DREAMS","MID_HEATHER_BEIGE"]
["TeeShirt","STELLA_DREAMS","MID_HEATHER_BLUE"]
["TeeShirt","STELLA_DREAMS","MID_HEATHER_GREEN"]
["TeeShirt","STELLA_DREAMS","MID_HEATHER_RED"]
["TeeShirt","STELLA_DREAMS","NAVY"]
["TeeShirt","STELLA_DREAMS","OCEAN_DEPTH"]
["TeeShirt","STELLA_DREAMS","PARADISE_GREEN"]
["TeeShirt","STELLA_DREAMS","PURPLE"]
["TeeShirt","STELLA_DREAMS","RASPBERRY"]
["TeeShirt","STELLA_DREAMS","ROYAL_BLUE"]
["TeeShirt","STELLA_DREAMS","SLUB_HEATHER_STEEL_GREY"]
["TeeShirt","STELLA_DREAMS","SUNNY_LIME"]
["TeeShirt","STELLA_DREAMS","WHITE"]
["TeeShirt","STELLA_DREAMS_DENIM","DARK_WASHED_INDIGO"]
["TeeShirt","STELLA_DREAMS_DENIM","LIGHT_WASHED_INDIGO"]
["Sweat","STELLA_ESCAPES","BLACK"]
["Sweat","STELLA_ESCAPES","CARIBBEAN_BLUE"]
["Sweat","STELLA_ESCAPES","CREAM_HEATHER_GREY"]
["Sweat","STELLA_ESCAPES","HEATHER_GREY"]
["Sweat","STELLA_ESCAPES","PARADISE_GREEN"]
["Sweat","STELLA_ESCAPES","RASPBERRY"]
["TeeShirt","STELLA_FACES","BLACK"]
["TeeShirt","STELLA_FACES","HEATHER_GREY"]
["TeeShirt","STELLA_FACES","NAVY"]
["TeeShirt","STELLA_FACES","WHITE"]
["TeeShirt","STELLA_FLIES","ANTHRACITE"]
["TeeShirt","STELLA_FLIES","BLACK"]
["TeeShirt","STELLA_FLIES","CARIBBEAN_BLUE"]
["TeeShirt","STELLA_FLIES","ECRU_NEPPY_MANDARINE"]
["TeeShirt","STELLA_FLIES","FRENCH_NAVY"]
["TeeShirt","STELLA_FLIES","HEATHER_ASH"]
["TeeShirt","STELLA_FLIES","HEATHER_CRANBERRY"]
["TeeShirt","STELLA_FLIES","HEATHER_GREY"]
["TeeShirt","STELLA_FLIES","LIGHT_HEATHER_YELLOW"]
["TeeShirt","STELLA_FLIES","OCEAN_DEPTH"]
["TeeShirt","STELLA_FLIES","PARADISE_GREEN"]
["TeeShirt","STELLA_FLIES","WHITE"]
["TeeShirt","STELLA_FLOWS","BLACK"]
["TeeShirt","STELLA_FLOWS","CAMEO_PINK"]
["TeeShirt","STELLA_FLOWS","WHITE"]
["Sweat","STELLA_GLIDES","DARK_HEATHER_GREY"]
["Sweat","STELLA_GLIDES","MID_HEATHER_GREY"]
["TeeShirt","STELLA_GLOWS_LINEN","LINEN_GREY"]
["TeeShirt","STELLA_GLOWS_LINEN","LINEN_MID_HEATHER_GREY"]
["TeeShirt","STELLA_GLOWS_LINEN","STRETCH_LIMO"]
["TeeShirt","STELLA_GLOWS_LINEN","WHITE"]
["TeeShirt","STELLA_GLOWS_MODAL","FRENCH_NAVY"]
["TeeShirt","STELLA_GLOWS_MODAL","GREY_VIOLET"]
["TeeShirt","STELLA_GLOWS_MODAL","HIBISCUS"]
["TeeShirt","STELLA_GLOWS_MODAL","MID_HEATHER_GREY"]
["TeeShirt","STELLA_GLOWS_MODAL","MID_HEATHER_GREY"]
["TeeShirt","STELLA_GLOWS_MODAL","OCEAN_DEPTH"]
["TeeShirt","STELLA_GLOWS_MODAL","STRETCH_LIMO"]
["TeeShirt","STELLA_GLOWS_MODAL","WHITE"]
["TeeShirt","STELLA_GLOWS_MODAL_POCKET","STRETCH_LIMO"]
["TeeShirt","STELLA_GLOWS_MODAL_POCKET","WHITE"]
["Sweat","STELLA_HIDES","CREAM_HEATHER_GREY"]
["Sweat","STELLA_HIDES","CREAM_HEATHER_PINK"]
["Sweat","STELLA_HIDES","LIGHT_HEATHER_LILAC"]
["Sweat","STELLA_HIDES","MID_HEATHER_GREY"]
["Sweat","STELLA_HIDES","NAVY"]
["Sweat","STELLA_HIDES","STRETCH_LIMO"]
["Sweat","STELLA_HIDES_COSY","BLACK"]
["Sweat","STELLA_HIDES_COSY","HEATHER_ASH"]
["Sweat","STELLA_HIDES_COSY","MID_HEATHER_GREY"]
["Sweat","STELLA_HIDES_COSY","NAVY"]
["Sweat","STELLA_HIDES_DENIM","MID_WASHED_INDIGO"]
["Shirt","STELLA_INSPIRES_DENIM","BLACK_DENIM"]
["Shirt","STELLA_INSPIRES_DENIM","DARK_INDIGO_DENIM"]
["Shirt","STELLA_INSPIRES_DENIM","LIGHT_INDIGO_DENIM"]
["Shirt","STELLA_INSPIRES_DENIM","MID_GREY_DENIM"]
["TeeShirt","STELLA_INVENTS_SLUB","ANTHRACITE"]
["TeeShirt","STELLA_INVENTS_SLUB","FRENCH_NAVY"]
["TeeShirt","STELLA_INVENTS_SLUB","IRIS_YELLOW"]
["TeeShirt","STELLA_INVENTS_SLUB","MINT_GREEN"]
["TeeShirt","STELLA_INVENTS_SLUB","VINTAGE_WHITE"]
["TeeShirt","STELLA_INVENTS_SLUB","WHITE"]
["TeeShirt","STELLA_INVITES_SLUB","BLACK"]
["TeeShirt","STELLA_INVITES_SLUB","WHITE"]
["TeeShirt","STELLA_JOKES","BLACK"]
["TeeShirt","STELLA_JOKES","BURGUNDY"]
["TeeShirt","STELLA_JOKES","HEATHER_GREY"]
["TeeShirt","STELLA_JOKES","NAVY"]
["TeeShirt","STELLA_JOKES","SLUB_HEATHER_GREY"]
["TeeShirt","STELLA_JOKES","WHITE"]
["TeeShirt","STELLA_JOKES_DENIM","DARK_WASHED_INDIGO"]
["TeeShirt","STELLA_JOKES_TENCEL","ANTHRACITE"]
["TeeShirt","STELLA_JOKES_TENCEL","LIGHT_KHAKI"]
["TeeShirt","STELLA_JOKES_TENCEL","NUDE"]
["TeeShirt","STELLA_JOKES_TENCEL","OPAL"]
["TeeShirt","STELLA_LIGHTS","STRETCH_LIMO"]
["TeeShirt","STELLA_LIGHTS","SUNNY_LIME"]
["TeeShirt","STELLA_LIGHTS","WHITE"]
["TeeShirt","STELLA_LIKES","BLACK"]
["TeeShirt","STELLA_LIKES","WHITE"]
["TeeShirt","STELLA_LOVES","ANTHRACITE"]
["TeeShirt","STELLA_LOVES","AZUR"]
["TeeShirt","STELLA_LOVES","BLACK"]
["TeeShirt","STELLA_LOVES","BOTTLE_GREEN"]
["TeeShirt","STELLA_LOVES","BURGUNDY"]
["TeeShirt","STELLA_LOVES","CAMELIA_PINK"]
["TeeShirt","STELLA_LOVES","DARK_HEATHER_INDIGO"]
["TeeShirt","STELLA_LOVES","GREEN"]
["TeeShirt","STELLA_LOVES","GREY_VIOLET"]
["TeeShirt","STELLA_LOVES","HEATHER_ASH"]
["TeeShirt","STELLA_LOVES","HEATHER_BLACK_DENIM"]
["TeeShirt","STELLA_LOVES","HEATHER_BRICK_ORANGE"]
["TeeShirt","STELLA_LOVES","HEATHER_GREY"]
["TeeShirt","STELLA_LOVES","HEATHER_ICE_BLUE"]
["TeeShirt","STELLA_LOVES","HOT_CORAL"]
["TeeShirt","STELLA_LOVES","LIGHT_HEATHER_LILAC"]
["TeeShirt","STELLA_LOVES","MID_HEATHER_KHAKI"]
["TeeShirt","STELLA_LOVES","MID_HEATHER_RED"]
["TeeShirt","STELLA_LOVES","NATURAL"]
["TeeShirt","STELLA_LOVES","NAVY"]
["TeeShirt","STELLA_LOVES","OCEAN_DEPTH"]
["TeeShirt","STELLA_LOVES","OPAL"]
["TeeShirt","STELLA_LOVES","ORANGE"]
["TeeShirt","STELLA_LOVES","PARADISE_GREEN"]
["TeeShirt","STELLA_LOVES","PLUM"]
["TeeShirt","STELLA_LOVES","RASPBERRY"]
["TeeShirt","STELLA_LOVES","RED"]
["TeeShirt","STELLA_LOVES","ROYAL_BLUE"]
["TeeShirt","STELLA_LOVES","SALTY_ROSE"]
["TeeShirt","STELLA_LOVES","SKY_BLUE"]
["TeeShirt","STELLA_LOVES","SLUB_HEATHER_GREY"]
["TeeShirt","STELLA_LOVES","WHITE"]
["TeeShirt","STELLA_LOVES_LINEN","BLACK"]
["TeeShirt","STELLA_LOVES_LINEN","LINEN_GREY"]
["TeeShirt","STELLA_LOVES_LINEN","LINEN_MID_HEATHER_GREY"]
["TeeShirt","STELLA_LOVES_LINEN","WHITE"]
["TeeShirt","STELLA_LOVES_MODAL","ANTHRACITE"]
["TeeShirt","STELLA_LOVES_MODAL","BLACK"]
["TeeShirt","STELLA_LOVES_MODAL","CAMELIA_PINK"]
["TeeShirt","STELLA_LOVES_MODAL","HOT_CORAL"]
["TeeShirt","STELLA_LOVES_MODAL","IRIS_YELLOW"]
["TeeShirt","STELLA_LOVES_MODAL","MID_HEATHER_GREY"]
["TeeShirt","STELLA_LOVES_MODAL","PALE_PEACH"]
["TeeShirt","STELLA_LOVES_MODAL","WHITE"]
["TeeShirt","STELLA_LOVES_SLUB","ANTHRACITE"]
["TeeShirt","STELLA_LOVES_SLUB","DEEP_ROYAL_BLUE"]
["TeeShirt","STELLA_LOVES_SLUB","IRIS_YELLOW"]
["TeeShirt","STELLA_LOVES_SLUB","LIGHT_KHAKI"]
["TeeShirt","STELLA_LOVES_SLUB","MINT_GREEN"]
["TeeShirt","STELLA_LOVES_SLUB","OCEAN_DEPTH"]
["TeeShirt","STELLA_LOVES_SLUB","VINTAGE_WHITE"]
["TeeShirt","STELLA_LOVES_VINTAGE","G.DYED_BLUE"]
["TeeShirt","STELLA_LOVES_VINTAGE","G.DYED_GREY"]
["TeeShirt","STELLA_LOVES_VINTAGE","G.DYED_WHITE"]
["TeeShirt","STELLA_LOVES_VINTAGE","G.DYES_ANTHRACITE"]
["TeeShirt","STELLA_PARADES","BLACK"]
["TeeShirt","STELLA_PARADES","CAMELIA_PINK"]
["TeeShirt","STELLA_PARADES","DEEP_ROYAL_BLUE"]
["TeeShirt","STELLA_PARADES","INDIA_INK_GREY"]
["TeeShirt","STELLA_PARADES","WHITE"]
["Polo","STELLA_PLAYS","ANTHRACITE"]
["Polo","STELLA_PLAYS","BLACK"]
["Polo","STELLA_PLAYS","BURGUNDY"]
["Polo","STELLA_PLAYS","CREAM_HEATHER_BLUE"]
["Polo","STELLA_PLAYS","CREAM_HEATHER_GREY"]
["Polo","STELLA_PLAYS","HEATHER_GREY"]
["Polo","STELLA_PLAYS","HOT_CORAL"]
["Polo","STELLA_PLAYS","NAVY"]
["Polo","STELLA_PLAYS","RASPBERRY"]
["Polo","STELLA_PLAYS","RED"]
["Polo","STELLA_PLAYS","ROYAL_BLUE"]
["Polo","STELLA_PLAYS","WHITE"]
["TeeShirt","STELLA_RECALLS","BLACK"]
["TeeShirt","STELLA_RECALLS","CITADEL_BLUE"]
["TeeShirt","STELLA_RECALLS","FRENCH_NAVY"]
["TeeShirt","STELLA_RECALLS","HEATHER_GREY"]
["TeeShirt","STELLA_RECALLS","LIGHT_HEATHER_YELLOW"]
["TeeShirt","STELLA_RECALLS","PALE_PEACH"]
["TeeShirt","STELLA_RECALLS","RED"]
["TeeShirt","STELLA_RECALLS","WHITE"]
["TeeShirt","STELLA_RETURNS","CREAM_HEATHER_GREY/HEATHER_CRANBERRY"]
["TeeShirt","STELLA_RETURNS","HEATHER_GREY/FRENCH_NAVY"]
["TeeShirt","STELLA_RETURNS","NAVY/MID_HEATHER_GREY"]
["TeeShirt","STELLA_SAILS","WHITE/NAVY"]
["TeeShirt","STELLA_SAILS","WHITE/SLUB_HEATHER_GREY"]
["Sweat","STELLA_SAYS","ANTHRACITE"]
["Sweat","STELLA_SAYS","AZUR"]
["Sweat","STELLA_SAYS","BLACK"]
["Sweat","STELLA_SAYS","BURGUNDY"]
["Sweat","STELLA_SAYS","CAMELIA_PINK"]
["Sweat","STELLA_SAYS","CARIBBEAN_BLUE"]
["Sweat","STELLA_SAYS","CREAM_HEATHER_GREY"]
["Sweat","STELLA_SAYS","DARK_HEATHER_GREY"]
["Sweat","STELLA_SAYS","FLAMINGO_PINK"]
["Sweat","STELLA_SAYS","HEATHER_CRANBERRY"]
["Sweat","STELLA_SAYS","HEATHER_EUCALYPTUS"]
["Sweat","STELLA_SAYS","HEATHER_GRAPE_RED"]
["Sweat","STELLA_SAYS","HEATHER_GREY"]
["Sweat","STELLA_SAYS","HEATHER_STONE"]
["Sweat","STELLA_SAYS","MID_HEATHER_BLUE"]
["Sweat","STELLA_SAYS","MID_HEATHER_GREEN"]
["Sweat","STELLA_SAYS","MID_HEATHER_KHAKI"]
["Sweat","STELLA_SAYS","MID_HEATHER_RED"]
["Sweat","STELLA_SAYS","NAVY"]
["Sweat","STELLA_SAYS","PARADISE_GREEN"]
["Sweat","STELLA_SAYS","SLUB_HEATHER_GREY"]
["Sweat","STELLA_SAYS","SLUB_MID_HEATHER_CLAY"]
["TeeShirt","STELLA_SEDUCES_MODAL","BLACK"]
["TeeShirt","STELLA_SEDUCES_MODAL","CITADEL_BLUE"]
["TeeShirt","STELLA_SEDUCES_MODAL","FRENCH_NAVY"]
["TeeShirt","STELLA_SEDUCES_MODAL","MID_HEATHER_GREY"]
["TeeShirt","STELLA_SEDUCES_MODAL","WHITE"]
["TeeShirt","STELLA_SELECTS","BLACK"]
["TeeShirt","STELLA_SELECTS","FRENCH_NAVY"]
["TeeShirt","STELLA_SELECTS","HEATHER_GREY"]
["TeeShirt","STELLA_SELECTS","WHITE"]
["Shirt","STELLA_SHINES","APRICOT"]
["Shirt","STELLA_SHINES","BLACK"]
["Shirt","STELLA_SHINES","BLUE_FIL_A_FIL"]
["Shirt","STELLA_SHINES","DEEP_ROYAL_BLUE"]
["Shirt","STELLA_SHINES","MINT"]
["Shirt","STELLA_SHINES","WHITE"]
["Shirt","STELLA_SHINES","WHITE/LIGHT_BLUE_OXFORD"]
["TeeShirt","STELLA_SHOWS","ANTHRACITE"]
["TeeShirt","STELLA_SHOWS","BLACK"]
["TeeShirt","STELLA_SHOWS","CAMELIA_PINK"]
["TeeShirt","STELLA_SHOWS","DARK_HEATHER_DENIM"]
["TeeShirt","STELLA_SHOWS","HIBISCUS"]
["TeeShirt","STELLA_SHOWS","MAIZE_YELLOW"]
["TeeShirt","STELLA_SHOWS","NATURAL"]
["TeeShirt","STELLA_SHOWS","NAVY"]
["TeeShirt","STELLA_SHOWS","RASPBERRY"]
["TeeShirt","STELLA_SHOWS","RED"]
["TeeShirt","STELLA_SHOWS","ROYAL_BLUE"]
["TeeShirt","STELLA_SHOWS","STARGAZER"]
["TeeShirt","STELLA_SHOWS","WHITE"]
["Sweat","STELLA_SLIDES","CREAM_HEATHER_GREY"]
["Sweat","STELLA_SLIDES","CREAM_HEATHER_PINK"]
["Sweat","STELLA_SLIDES","HEATHER_GREY"]
["Sweat","STELLA_SLIDES","LIGHT_HEATHER_LILAC"]
["Sweat","STELLA_SLIDES","SLUB_DARK_HEATHER_GREY"]
["Sweat","STELLA_SLIDES","SUNNY_LIME"]
["TeeShirt","STELLA_SMILES","IRIS_YELLOW"]
["TeeShirt","STELLA_SMILES","MINT_GREEN"]
["TeeShirt","STELLA_SPARKLES_LINEN","BLACK"]
["TeeShirt","STELLA_SPARKLES_LINEN","LINEN_GREY"]
["TeeShirt","STELLA_SPARKLES_LINEN","WHITE"]
["TeeShirt","STELLA_SPARKLES_LINEN_GLITTER","LINEN_GREY/SILVER"]
["TeeShirt","STELLA_SPARKLES_LINEN_GLITTER","STRETCH_LIMO/SILVER"]
["TeeShirt","STELLA_SPARKLES_LINEN_GLITTER","WHITE/GOLD"]
["TeeShirt","STELLA_SPARKLES_MODAL","BLACK"]
["TeeShirt","STELLA_SPARKLES_MODAL","MID_HEATHER_GREY"]
["TeeShirt","STELLA_SPARKLES_MODAL","NAVY"]
["TeeShirt","STELLA_SPARKLES_MODAL","WHITE"]
["Pants","STELLA_TRACES","BLACK"]
["Pants","STELLA_TRACES","DARK_HEATHER_GREY"]
["Pants","STELLA_TRACES","HEATHER_GREY"]
["Sweat","STELLA_TRAVELS","BLACK"]
["Sweat","STELLA_TRAVELS","BURGUNDY"]
["Sweat","STELLA_TRAVELS","CITADEL_BLUE"]
["Sweat","STELLA_TRAVELS","CREAM_HEATHER_GREY"]
["Sweat","STELLA_TRAVELS","DARK_HEATHER_BLUE"]
["Sweat","STELLA_TRAVELS","DARK_HEATHER_GREY"]
["Sweat","STELLA_TRAVELS","HEATHER_GREY"]
["Sweat","STELLA_TRAVELS","MID_HEATHER_BEIGE"]
["Sweat","STELLA_TRAVELS","MID_HEATHER_BLUE"]
["Sweat","STELLA_TRAVELS","NAVY"]
["Sweat","STELLA_TRAVELS_SHERPA","DARK_HEATHER_BURGUNDY"]
["Sweat","STELLA_TRAVELS_SHERPA","HEATHER_BRICK_ORANGE"]
["Sweat","STELLA_TRAVELS_SHERPA","HEATHER_GREY"]
["Sweat","STELLA_TRAVELS_SHERPA","NAVY"]
["Sweat","STELLA_TRAVELS_SHERPA","SLUB_MID_HEATHER_CLAY"]
["Sweat","STELLA_TRAVELS_SHERPA","SNOW_DARK_HEATHER_BLUE"]
["Sweat","STELLA_TRAVELS_SHERPA","STRETCH_LIMO"]
["Sweat","STELLA_TRIPS","BLACK"]
["Sweat","STELLA_TRIPS","BURGUNDY"]
["Sweat","STELLA_TRIPS","CITADEL_BLUE"]
["Sweat","STELLA_TRIPS","CREAM_HEATHER_GREY"]
["Sweat","STELLA_TRIPS","CREAM_HEATHER_PINK"]
["Sweat","STELLA_TRIPS","DARK_HEATHER_GREY"]
["Sweat","STELLA_TRIPS","DARK_HEATHER_DENIM"]
["Sweat","STELLA_TRIPS","HEATHER_BRICK_ORANGE"]
["Sweat","STELLA_TRIPS","HEATHER_CRANBERRY"]
["Sweat","STELLA_TRIPS","HEATHER_GRAPE_RED"]
["Sweat","STELLA_TRIPS","HEATHER_GREY"]
["Sweat","STELLA_TRIPS","HEATHER_STONE"]
["Sweat","STELLA_TRIPS","LIGHT_HEATHER_LILAC"]
["Sweat","STELLA_TRIPS","MID_HEATHER_BEIGE"]
["Sweat","STELLA_TRIPS","MID_HEATHER_BLUE"]
["Sweat","STELLA_TRIPS","MID_HEATHER_GREY"]
["Sweat","STELLA_TRIPS","MID_HEATHER_TEAL"]
["Sweat","STELLA_TRIPS","NAVY"]
["Sweat","STELLA_TRIPS","RED"]
["Sweat","STELLA_TRIPS","SLUB_HEATHER_GREY"]
["Sweat","STELLA_TRIPS","SLUB_HEATHER_STEEL_GREY"]
["Sweat","STELLA_TRIPS","SLUB_MID_HEATHER_CLAY"]
["Sweat","STELLA_TRIPS","VINTAGE_WHITE"]
["Sweat","STELLA_TRIPS_DENIM","LIGHT_WASHED_INDIGO"]
["Sweat","STELLA_TRIPS_DENIM","MID_WASHED_INDIGO"]
["Sweat","STELLA_TRIPS_INSIDE_OUT","HEATHER_GREY"]
["Sweat","STELLA_TRIPS_INSIDE_OUT","MID_HEATHER_GREY"]
["Sweat","STELLA_TRIPS_TIPPED","BURGUNDY/MID_HEATHER_BEIGE/ORANGE"]
["Sweat","STELLA_TRIPS_TIPPED","DARK_HEATHER_GREY/WHITE/BURGUNDY"]
["Sweat","STELLA_TRIPS_TIPPED","FRENCH_NAVY/WHITE/HEATHER_GREY"]
["Sweat","STELLA_TRIPS_TIPPED","HEATHER_GREY/WHITE/DEEP_ROYAL_BLUE"]
["Sweat","STELLA_TRIPS_TIPPED","MID_HEATHER_BEIGE/BURGUNDY/HEATHER_BRICK_ORANGE"]
["Sweat","STELLA_TRIPS_VINTAGE","G.DYED_ANTHRACITE"]
["Sweat","STELLA_TRIPS_VINTAGE","G.DYED_BLUE"]
["TeeShirt","STELLA_TURNS_SLUB","BLACK"]
["TeeShirt","STELLA_TURNS_SLUB","SLUB_HEATHER_GREY"]
["TeeShirt","STELLA_TURNS_SLUB","SLUB_HEATHER_STEEL_GREY"]
["TeeShirt","STELLA_TURNS_SLUB","WHITE"]
["TeeShirt","STELLA_VARIES_SLUB","CREAM_HEATHER_GREY"]
["TeeShirt","STELLA_VARIES_SLUB","FRENCH_NAVY"]
["TeeShirt","STELLA_WANTS","ANTHRACITE"]
["TeeShirt","STELLA_WANTS","AZUR"]
["TeeShirt","STELLA_WANTS","BLACK"]
["TeeShirt","STELLA_WANTS","BOTTLE_GREEN"]
["TeeShirt","STELLA_WANTS","BURGUNDY"]
["TeeShirt","STELLA_WANTS","CAMELIA_PINK"]
["TeeShirt","STELLA_WANTS","CARIBBEAN_BLUE"]
["TeeShirt","STELLA_WANTS","CHOCOLATE"]
["TeeShirt","STELLA_WANTS","CITADEL_BLUE"]
["TeeShirt","STELLA_WANTS","CREAM_HEATHER_BLUE"]
["TeeShirt","STELLA_WANTS","CREAM_HEATHER_GREY"]
["TeeShirt","STELLA_WANTS","CREAM_HEATHER_PINK"]
["TeeShirt","STELLA_WANTS","DARK_HEATHER_DENIM"]
["TeeShirt","STELLA_WANTS","DARK_HEATHER_GREY"]
["TeeShirt","STELLA_WANTS","DEEP_ROYAL_BLUE"]
["TeeShirt","STELLA_WANTS","ECRU_NEPPY_MANDARINE"]
["TeeShirt","STELLA_WANTS","FLAMINGO_PINK"]
["TeeShirt","STELLA_WANTS","GREEN"]
["TeeShirt","STELLA_WANTS","HEATHER_ASH"]
["TeeShirt","STELLA_WANTS","HEATHER_CRANBERRY"]
["TeeShirt","STELLA_WANTS","HEATHER_GRAPE_RED"]
["TeeShirt","STELLA_WANTS","HEATHER_GREY"]
["TeeShirt","STELLA_WANTS","HIBISCUS"]
["TeeShirt","STELLA_WANTS","KHAKI"]
["TeeShirt","STELLA_WANTS","LIGHT_HEATHER_YELLOW"]
["TeeShirt","STELLA_WANTS","MID_HEATHER_BEIGE"]
["TeeShirt","STELLA_WANTS","MID_HEATHER_BLUE"]
["TeeShirt","STELLA_WANTS","MID_HEATHER_GREY"]
["TeeShirt","STELLA_WANTS","MID_HEATHER_ROYAL_BLUE"]
["TeeShirt","STELLA_WANTS","NATURAL"]
["TeeShirt","STELLA_WANTS","NAVY"]
["TeeShirt","STELLA_WANTS","OCEAN_DEPTH"]
["TeeShirt","STELLA_WANTS","OPAL"]
["TeeShirt","STELLA_WANTS","ORANGE"]
["TeeShirt","STELLA_WANTS","PLUM"]
["TeeShirt","STELLA_WANTS","RASPBERRY"]
["TeeShirt","STELLA_WANTS","RED"]
["TeeShirt","STELLA_WANTS","ROYAL_BLUE"]
["TeeShirt","STELLA_WANTS","SKY_BLUE"]
["TeeShirt","STELLA_WANTS","SLUB_HEATHER_GREY"]
["TeeShirt","STELLA_WANTS","SLUB_HEATHER_STEEL_GREY"]
["TeeShirt","STELLA_WANTS","SPECTRA_YELLOW"]
["TeeShirt","STELLA_WANTS","VINTAGE_WHITE"]
["TeeShirt","STELLA_WANTS","WHITE"]
["TeeShirt","STELLA_WANTS_DENIM","DARK_WASHED_INDIGO"]
["TeeShirt","STELLA_WANTS_DENIM","LIGHT_WASHED_INDIGO"]
["TeeShirt","STELLA_WANTS_DENIM","MID_WASHED_INDIGO"]
["TeeShirt","STELLA_WHISPERS_SLUB","BLACK"]
["TeeShirt","STELLA_WHISPERS_SLUB","PALE_PEACH"]
["TeeShirt","STELLA_WHISPERS_SLUB","WHITE"]
["TeeShirt","STELLA_WHISTLES","BLACK"]
["TeeShirt","STELLA_WHISTLES","WHITE"]
["Jacket","STELLA_WINDS","ANTHRACITE"]
["Jacket","STELLA_WINDS","BLACK"]
["Jacket","STELLA_WINDS","BOTTLE_GREEN"]
["Jacket","STELLA_WINDS","BURGUNDY"]
["Jacket","STELLA_WINDS","CITADEL_BLUE"]
["Jacket","STELLA_WINDS","HIBISCUS"]
["Jacket","STELLA_WINDS","NAVY"]
["TeeShirt","STELLA_WINKS_MODAL","FRENCH_NAVY/MID_HEATHER_GREY"]
["TeeShirt","STELLA_WINKS_MODAL","MID_HEATHER_GREY/FRENCH_NAVY"]
["TeeShirt","STELLA_WISHES","ANTHRACITE"]
["TeeShirt","STELLA_WISHES","HEATHER_GREY"]
["TeeShirt","STELLA_WISHES","MINT_GREEN"]
["TeeShirt","STELLA_WISHES","SUN_CORAL"]
["TeeShirt","STELLA_WISHES","WHITE"]
["Sweat","STREAM","CREAM_HEATHER_BLUE"]
["Sweat","STREAM","CREAM_HEATHER_GREY"]
["Sweat","STREAM","CREAM_HEATHER_PINK"]
["Sweat","STREAM","DARK_HEATHER_BURGUNDY"]
["Sweat","STREAM","LIGHT_HEATHER_LILAC"]
["Sweat","STREAM","MID_HEATHER_RED"]
["Sweat","STREAM","SLUB_DARK_HEATHER_GREY"]
["Sweat","STREAM","SLUB_HEATHER_GREY"]
["Sweat","STREAM","SNOW_DARK_HEATHER_BLUE"]
["Sweat","STREAM","STRETCH_LIMO"]
["Sweat","STUDY","BLACK/SLUB_HEATHER_GREY"]
["Sweat","TELL","BURGUNDY"]
["Sweat","TELL","CREAM_HEATHER_GREY"]
["Sweat","TELL","HEATHER_GREY"]
["Sweat","TELL","NAVY"]
["Sweat","TELL","SLUB_HEATHER_GREY"]
["Sweat","TELL","STRETCH_LIMO"]
["Scarf","WRAP","BLACK"]
["Scarf","WRAP","BURGUNDY"]
["Scarf","WRAP","CARIBBEAN_BLUE"]
["Scarf","WRAP","CITADEL_BLUE"]
["Scarf","WRAP","DEEP_ROYAL_BLUE"]
["Scarf","WRAP","FLAMINGO_PINK"]
["Scarf","WRAP","HIBISCUS"]
["Scarf","WRAP","NAVY"]
["Scarf","WRAP","PALE_PEACH"]
["Scarf","WRAP","PARADISE_GREEN"]
["Scarf","WRAP","SUNNY_LIME"]
["Scarf","WRAP","VIVID_GREEN"]
["Scarf","WRAP","WHITE"]
["Scarf","FOLD_LINEN","BLACK"]
["Scarf","FOLD_LINEN","LINEN_GREY"]
["Scarf","FOLD_LINEN","LINEN_MID_HEATHER_GREY"]
["Scarf","FOLD_LINEN","WHITE"]